[Event "LASS Vårturneringar 2018"]
[Site "Linköping, Sweden"]
[Date "2018.05.12"]
[Round "5.6"]
[White "Bernhard, Jonathan"]
[Black "Alos, Raul Toledano"]
[Result "0-1"]
[TimeControl "90 min + 30 sec/move + 30 min/40 moves"]
[WhiteElo "1926"]
[BlackElo "1772"]

1. d4 {[%clk 01:30:56]} {[%emt 00:00:03]} d5 {[%clk 01:30:37]} {[%emt
00:00:24]} 2. c4 {[%clk 01:31:20]} {[%emt 00:00:05]} e6 {[%clk 01:30:58]}
{[%emt 00:00:10]} 3. Nf3 {[%clk 01:31:45]} {[%emt 00:00:05]} Nf6 {[%clk
01:31:20]} {[%emt 00:00:08]} 4. g3 {[%clk 01:31:44]} {[%emt 00:00:31]} Bd7
{[%clk 01:30:51]} {[%emt 00:01:00]} 5. Bg2 {[%clk 01:31:51]} {[%emt 00:00:23]}
dxc4 {[%clk 01:30:55]} {[%emt 00:00:26]} 6. O-O {[%clk 01:31:48]} {[%emt
00:00:33]} Bc6 {[%clk 01:31:20]} {[%emt 00:00:06]} 7. Qc2 {[%clk 01:30:39]}
{[%emt 00:01:38]} Bd5 {[%clk 01:27:33]} {[%emt 00:04:17]} 8. Nc3 {[%clk
01:30:38]} {[%emt 00:00:31]} Nc6 {[%clk 01:27:37]} {[%emt 00:00:27]} 9. e4
{[%clk 01:22:20]} {[%emt 00:08:48]} Nb4 {[%clk 01:27:13]} {[%emt 00:00:54]} 10.
Qb1 {[%clk 01:22:45]} {[%emt 00:00:05]} Bc6 {[%clk 01:26:45]} {[%emt 00:00:58]}
11. Ne5 {[%clk 01:23:11]} {[%emt 00:00:04]} Qxd4 {[%clk 01:24:14]} {[%emt
00:03:01]} 12. Nxc6 {[%clk 01:23:04]} {[%emt 00:00:37]} Nxc6 {[%clk 01:21:40]}
{[%emt 00:03:04]} 13. Rd1 {[%clk 01:23:28]} {[%emt 00:00:05]} Qb6 {[%clk
01:13:40]} {[%emt 00:08:30]} 14. Be3 {[%clk 01:23:31]} {[%emt 00:00:26]} Qa6
{[%clk 01:14:09]} {[%emt 00:00:03]} 15. a4 {[%clk 01:15:21]} {[%emt 00:08:39]}
Bb4 {[%clk 01:08:28]} {[%emt 00:06:10]} 16. Nb5 {[%clk 01:14:31]} {[%emt
00:01:20]} Ba5 {[%clk 01:08:46]} {[%emt 00:00:13]} 17. Bc5 {[%clk 01:13:16]}
{[%emt 00:01:44]} Rc8 {[%clk 01:04:03]} {[%emt 00:05:13]} 18. Qc2 {[%clk
01:08:18]} {[%emt 00:05:27]} Bb4 {[%clk 01:02:50]} {[%emt 00:01:44]} 19. Qxc4
{[%clk 01:06:23]} {[%emt 00:02:24]} Bxc5 {[%clk 01:03:07]} {[%emt 00:00:13]} 20.
Qxc5 {[%clk 01:06:46]} {[%emt 00:00:07]} Qb6 {[%clk 01:03:22]} {[%emt
00:00:16]} 21. Rac1 {[%clk 01:04:49]} {[%emt 00:02:26]} Qxc5 {[%clk 01:02:44]}
{[%emt 00:01:09]} 22. Rxc5 {[%clk 01:05:14]} {[%emt 00:00:05]} a6 {[%clk
00:53:26]} {[%emt 00:09:48]} 23. Na3 {[%clk 00:57:03]} {[%emt 00:08:40]} Ke7
{[%clk 00:52:26]} {[%emt 00:01:30]} 24. Rdc1 {[%clk 00:51:37]} {[%emt
00:05:56]} Rhd8 {[%clk 00:49:35]} {[%emt 00:03:21]} 25. R5c4 {[%clk 00:49:08]}
{[%emt 00:02:58]} Rd2 {[%clk 00:41:09]} {[%emt 00:08:56]} 26. b4 {[%clk
00:48:14]} {[%emt 00:01:24]} Ng4 {[%clk 00:40:17]} {[%emt 00:01:23]} 27. b5
{[%clk 00:46:01]} {[%emt 00:02:42]} Nd4 {[%clk 00:35:49]} {[%emt 00:04:58]} 28.
Rxc7+ {[%clk 00:45:53]} {[%emt 00:00:38]} Rxc7 {[%clk 00:36:17]} {[%emt
00:00:02]} 29. Rxc7+ {[%clk 00:46:21]} {[%emt 00:00:02]} Kf6 {[%clk 00:35:30]}
{[%emt 00:01:17]} 30. e5+ {[%clk 00:38:19]} {[%emt 00:08:32]} Nxe5 {[%clk
00:33:50]} {[%emt 00:02:10]} 31. Bxb7 {[%clk 00:38:37]} {[%emt 00:00:12]} axb5
{[%clk 00:32:44]} {[%emt 00:01:37]} 32. Nxb5 {[%clk 00:38:08]} {[%emt
00:00:59]} Nxb5 {[%clk 00:31:53]} {[%emt 00:01:21]} 33. axb5 {[%clk 00:38:18]}
{[%emt 00:00:19]} Rb2 {[%clk 00:32:13]} {[%emt 00:00:09]} 34. Ba6 {[%clk
00:31:43]} {[%emt 00:07:06]} g5 {[%clk 00:31:58]} {[%emt 00:00:45]} 35. h3
{[%clk 00:28:22]} {[%emt 00:03:51]} h5 {[%clk 00:31:47]} {[%emt 00:00:41]} 36.
f4 {[%clk 00:25:40]} {[%emt 00:03:12]} gxf4 {[%clk 00:29:12]} {[%emt 00:03:05]}
37. gxf4 {[%clk 00:26:06]} {[%emt 00:00:05]} Ng6 {[%clk 00:28:29]} {[%emt
00:01:12]} 38. Rc6 {[%clk 00:25:39]} {[%emt 00:00:56]} Nxf4 {[%clk 00:26:38]}
{[%emt 00:02:21]} 39. b6 {[%clk 00:26:02]} {[%emt 00:00:07]} Ne2+ {[%clk
00:26:58]} {[%emt 00:00:11]} 40. Bxe2 {[%clk 00:22:43]} {[%emt 00:03:48]} Rxe2
{[%clk 00:27:26]} {[%emt 00:00:02]} 41. b7 {[%clk 00:23:00]} {[%emt 00:00:13]}
Rb2 {[%clk 00:27:47]} {[%emt 00:00:08]} 42. Rc7 {[%clk 00:23:28]} {[%emt
00:00:03]} Kg6 {[%clk 00:25:59]} {[%emt 00:02:18]} 43. h4 {[%clk 00:23:25]}
{[%emt 00:00:33]} f5 {[%clk 00:26:15]} {[%emt 00:00:14]} 44. Kf1 {[%clk
00:23:01]} {[%emt 00:00:54]} f4 {[%clk 00:26:33]} {[%emt 00:00:13]} 45. Rc6
{[%clk 00:19:25]} {[%emt 00:04:05]} Kf5 {[%clk 00:26:33]} {[%emt 00:00:31]} 46.
Rc7 {[%clk 00:19:22]} {[%emt 00:00:32]} e5 {[%clk 00:24:32]} {[%emt 00:02:31]}
47. Rf7+ {[%clk 00:18:12]} {[%emt 00:01:39]} Ke4 {[%clk 00:23:53]} {[%emt
00:01:09]} 48. Rc7 {[%clk 00:16:41]} {[%emt 00:02:01]} Kf3 {[%clk 00:23:35]}
{[%emt 00:00:49]} 49. Rc3+ {[%clk 00:16:14]} {[%emt 00:00:58]} Kg4 {[%clk
00:24:00]} {[%emt 00:00:04]} 50. Rc5 {[%clk 00:16:16]} {[%emt 00:00:27]} e4
{[%clk 00:24:18]} {[%emt 00:00:13]} 51. Rc7 {[%clk 00:13:34]} {[%emt 00:03:12]}
e3 {[%clk 00:23:25]} {[%emt 00:01:22]} 52. Rf7 {[%clk 00:12:20]} {[%emt
00:01:43]} Kf3 {[%clk 00:23:42]} {[%emt 00:00:14]} 0-1

[Event "LASS Vårturneringar 2018"]
[Site "Linköping, Sweden"]
[Date "2018.05.12"]
[Round "5.4"]
[White "Tiger-Norqvist, Axel"]
[Black "Garner, Mårten"]
[Result "1-0"]
[TimeControl "90 min + 30 sec/move + 30 min/40 moves"]
[WhiteElo "2146"]
[BlackElo "1872"]

1. e4 {[%clk 01:30:57]} {[%emt 00:00:03]} e6 {[%clk 01:30:56]} {[%emt
00:00:05]} 2. d4 {[%clk 01:31:21]} {[%emt 00:00:05]} d5 {[%clk 01:31:23]}
{[%emt 00:00:04]} 3. e5 {[%clk 01:31:43]} {[%emt 00:00:09]} c5 {[%clk
01:31:47]} {[%emt 00:00:05]} 4. c3 {[%clk 01:32:08]} {[%emt 00:00:06]} Nc6
{[%clk 01:32:12]} {[%emt 00:00:04]} 5. Nf3 {[%clk 01:32:32]} {[%emt 00:00:06]}
Qb6 {[%clk 01:32:24]} {[%emt 00:00:17]} 6. a3 {[%clk 01:32:54]} {[%emt
00:00:09]} Nh6 {[%clk 01:32:45]} {[%emt 00:00:08]} 7. b4 {[%clk 01:33:14]}
{[%emt 00:00:10]} cxd4 {[%clk 01:33:07]} {[%emt 00:00:07]} 8. cxd4 {[%clk
01:33:35]} {[%emt 00:00:09]} Nf5 {[%clk 01:33:28]} {[%emt 00:00:09]} 9. Bb2
{[%clk 01:32:42]} {[%emt 00:01:24]} Bd7 {[%clk 01:32:50]} {[%emt 00:01:08]} 10.
g4 {[%clk 01:32:58]} {[%emt 00:00:14]} Nh6 {[%clk 01:31:38]} {[%emt 00:01:40]}
11. h3 {[%clk 01:33:09]} {[%emt 00:00:21]} Be7 {[%clk 01:31:45]} {[%emt
00:00:22]} 12. Bd3 {[%clk 01:22:05]} {[%emt 00:11:35]} O-O {[%clk 01:26:48]}
{[%emt 00:05:28]} 13. Qc2 {[%clk 00:53:34]} {[%emt 00:29:02]} Bxb4+ {[%clk
00:56:01]} {[%emt 00:31:16]} 14. Nc3 {[%clk 00:46:26]} {[%emt 00:07:37]} Bxc3+
{[%clk 00:53:41]} {[%emt 00:02:50]} 15. Bxc3 {[%clk 00:46:51]} {[%emt
00:00:06]} g6 {[%clk 00:52:33]} {[%emt 00:01:36]} 16. Rb1 {[%clk 00:34:41]}
{[%emt 00:12:41]} Qc7 {[%clk 00:52:45]} {[%emt 00:00:17]} 17. Ke2 {[%clk
00:34:54]} {[%emt 00:00:18]} Rac8 {[%clk 00:52:39]} {[%emt 00:00:35]} 18. Qb2
{[%clk 00:30:42]} {[%emt 00:04:44]} b6 {[%clk 00:47:40]} {[%emt 00:05:29]} 19.
Ba6 {[%clk 00:27:32]} {[%emt 00:03:39]} Rcd8 {[%clk 00:47:08]} {[%emt
00:01:02]} 20. Bd2 {[%clk 00:27:02]} {[%emt 00:01:01]} Kg7 {[%clk 00:47:07]}
{[%emt 00:00:30]} 21. Bg5 {[%clk 00:27:09]} {[%emt 00:00:23]} Rb8 {[%clk
00:44:23]} {[%emt 00:03:12]} 22. Bf6+ {[%clk 00:27:29]} {[%emt 00:00:12]} Kg8
{[%clk 00:44:39]} {[%emt 00:00:14]} 23. Qd2 {[%clk 00:27:37]} {[%emt 00:00:23]}
Nf5 {[%clk 00:42:49]} {[%emt 00:02:19]} 24. gxf5 {[%clk 00:27:52]} {[%emt
00:00:15]} exf5 {[%clk 00:43:10]} {[%emt 00:00:09]} 25. Qh6 {[%emt 00:00:11]}
1-0

[Event "LASS Vårturneringar 2018"]
[Site "Linköping, Sweden"]
[Date "2018.05.12"]
[Round "5.7"]
[White "Karlsson, Henrik"]
[Black "Knutsson, Håkan"]
[Result "0-1"]
[TimeControl "90 min + 30 sec/move + 30 min/40 moves"]
[WhiteElo "1699"]
[BlackElo "1865"]

1. e4 {[%clk 01:30:55]} {[%emt 00:00:04]} c5 {[%clk 01:30:51]} {[%emt
00:00:10]} 2. Nf3 {[%clk 01:31:14]} {[%emt 00:00:12]} e6 {[%clk 01:31:10]}
{[%emt 00:00:10]} 3. d4 {[%clk 01:31:37]} {[%emt 00:00:06]} cxd4 {[%clk
01:31:32]} {[%emt 00:00:09]} 4. Nxd4 {[%clk 01:32:00]} {[%emt 00:00:07]} Nc6
{[%clk 01:31:53]} {[%emt 00:00:09]} 5. Nc3 {[%clk 01:32:10]} {[%emt 00:00:20]}
Qc7 {[%clk 01:31:59]} {[%emt 00:00:23]} 6. Be3 {[%clk 01:32:06]} {[%emt
00:00:34]} a6 {[%clk 01:32:11]} {[%emt 00:00:18]} 7. Qd2 {[%clk 01:31:38]}
{[%emt 00:00:59]} Nf6 {[%clk 01:32:06]} {[%emt 00:00:35]} 8. Be2 {[%clk
01:29:11]} {[%emt 00:02:57]} b5 {[%clk 01:29:15]} {[%emt 00:03:21]} 9. f3
{[%clk 01:27:38]} {[%emt 00:02:03]} Bb7 {[%clk 01:28:03]} {[%emt 00:01:42]} 10.
Nxc6 {[%clk 01:15:47]} {[%emt 00:12:21]} dxc6 {[%clk 01:25:38]} {[%emt
00:02:54]} 11. Rd1 {[%clk 01:12:59]} {[%emt 00:03:19]} Be7 {[%clk 01:19:52]}
{[%emt 00:06:16]} 12. O-O {[%clk 01:10:14]} {[%emt 00:03:15]} O-O {[%clk
01:18:28]} {[%emt 00:01:54]} 13. Qc1 {[%clk 00:59:24]} {[%emt 00:11:21]} c5
{[%clk 01:13:09]} {[%emt 00:05:48]} 14. Bf4 {[%clk 00:56:02]} {[%emt 00:03:53]}
Qc6 {[%clk 01:06:46]} {[%emt 00:06:53]} 15. Bg5 {[%clk 00:54:15]} {[%emt
00:02:17]} Rfe8 {[%clk 01:06:01]} {[%emt 00:01:15]} 16. e5 {[%clk 00:45:55]}
{[%emt 00:08:51]} Nd5 {[%clk 01:05:21]} {[%emt 00:01:10]} 17. Ne4 {[%clk
00:35:30]} {[%emt 00:10:55]} c4 {[%clk 00:59:55]} {[%emt 00:05:55]} 18. Bxe7
{[%clk 00:33:08]} {[%emt 00:02:53]} Rxe7 {[%clk 01:00:23]} {[%emt 00:00:02]} 19.
Qg5 {[%clk 00:33:18]} {[%emt 00:00:20]} h6 {[%clk 00:58:08]} {[%emt 00:02:45]}
20. Qh4 {[%clk 00:26:41]} {[%emt 00:07:07]} Kf8 {[%clk 00:52:49]} {[%emt
00:05:48]} 21. Rd2 {[%clk 00:16:10]} {[%emt 00:11:02]} Ne3 {[%clk 00:44:01]}
{[%emt 00:09:17]} 22. Rd6 {[%clk 00:13:26]} {[%emt 00:03:15]} Qc7 {[%clk
00:43:56]} {[%emt 00:00:35]} 23. Re1 {[%clk 00:12:40]} {[%emt 00:01:17]} Rc8
{[%clk 00:39:24]} {[%emt 00:05:02]} 24. c3 {[%clk 00:11:49]} {[%emt 00:01:22]}
Qb8 {[%clk 00:35:02]} {[%emt 00:04:51]} 25. g4 {[%clk 00:08:03]} {[%emt
00:04:16]} Qa8 {[%clk 00:34:31]} {[%emt 00:01:00]} 26. Qf2 {[%clk 00:07:43]}
{[%emt 00:00:51]} Nd5 {[%clk 00:34:14]} {[%emt 00:00:47]} 27. Qg3 {[%clk
00:06:45]} {[%emt 00:01:29]} Qa7+ {[%clk 00:33:49]} {[%emt 00:00:55]} 28. Kh1
{[%clk 00:06:25]} {[%emt 00:00:50]} Nc7 {[%clk 00:32:44]} {[%emt 00:01:35]} 29.
g5 {[%clk 00:06:23]} {[%emt 00:00:32]} Bxe4 {[%clk 00:31:44]} {[%emt 00:01:29]}
30. gxh6 {[%clk 00:06:18]} {[%emt 00:00:34]} Bg6 {[%clk 00:30:29]} {[%emt
00:01:44]} 31. hxg7+ {[%clk 00:03:45]} {[%emt 00:03:04]} Kxg7 {[%clk 00:30:31]}
{[%emt 00:00:25]} 32. h4 {[%clk 00:02:23]} {[%emt 00:01:55]} Rh8 {[%clk
00:30:36]} {[%emt 00:00:24]} 33. Bd1 {[%clk 00:02:23]} {[%emt 00:00:32]} Nd5
{[%clk 00:28:55]} {[%emt 00:02:10]} 34. Bc2 {[%clk 00:01:26]} {[%emt 00:01:27]}
Ree8 {[%clk 00:27:58]} {[%emt 00:01:26]} 35. Rg1 {[%clk 00:00:40]} {[%emt
00:01:17]} Qe7 {[%clk 00:26:14]} {[%emt 00:02:13]} 36. Bxg6 {[%clk 00:00:38]}
{[%emt 00:00:33]} Qxh4 {[%clk 00:26:33]} {[%emt 00:00:10]} 37. Qxh4 {[%clk
00:00:42]} {[%emt 00:00:27]} Rxh4 {[%clk 00:26:56]} {[%emt 00:00:07]} 38. Kg2
{[%clk 00:01:09]} {[%emt 00:00:04]} Kxg6 {[%clk 00:27:08]} {[%emt 00:00:18]} 39.
Kf2+ {[%clk 00:30:30]} {[%emt 00:01:09]} 0-1

[Event "LASS Vårturneringar 2018"]
[Site "Linköping, Sweden"]
[Date "2018.05.12"]
[Round "5.3"]
[White "Olsson, Magnus"]
[Black "Nörager, Mattias"]
[Result "0-1"]
[TimeControl "90 min + 30 sec/move + 30 min/40 moves"]
[WhiteElo "1677"]
[BlackElo "1706"]

1. c4 {[%clk 01:30:59]} f5 {[%clk 01:20:56]} {[%emt 00:10:04]} 2. Nf3 {[%clk
01:31:02]} {[%emt 00:00:27]} Nf6 {[%clk 01:19:31]} {[%emt 00:01:54]} 3. g3
{[%clk 01:30:55]} {[%emt 00:00:37]} c5 {[%clk 01:19:18]} {[%emt 00:00:42]} 4.
Bg2 {[%clk 01:30:42]} {[%emt 00:00:44]} Nc6 {[%clk 01:18:43]} {[%emt 00:01:05]}
5. d4 {[%clk 01:30:51]} {[%emt 00:00:22]} cxd4 {[%clk 01:17:55]} {[%emt
00:01:19]} 6. Nxd4 {[%clk 01:31:01]} {[%emt 00:00:19]} g6 {[%clk 01:12:35]}
{[%emt 00:05:49]} 7. b3 {[%clk 01:28:22]} {[%emt 00:03:09]} Bg7 {[%clk
01:11:18]} {[%emt 00:01:47]} 8. Bb2 {[%clk 01:27:58]} {[%emt 00:00:55]} O-O
{[%clk 01:07:57]} {[%emt 00:03:51]} 9. O-O {[%clk 01:26:45]} {[%emt 00:01:43]}
Re8 {[%clk 01:06:20]} {[%emt 00:02:07]} 10. Nc3 {[%clk 01:21:42]} {[%emt
00:05:33]} Nxd4 {[%clk 01:00:53]} {[%emt 00:05:57]} 11. Qxd4 {[%clk 01:19:34]}
{[%emt 00:02:38]} Qa5 {[%clk 00:55:28]} {[%emt 00:05:54]} 12. Qd2 {[%clk
01:13:55]} {[%emt 00:06:10]} Ng4 {[%clk 00:50:38]} {[%emt 00:05:20]} 13. Qd5+
{[%clk 01:12:49]} {[%emt 00:01:36]} Qxd5 {[%clk 00:50:49]} {[%emt 00:00:19]} 14.
Bxd5+ {[%clk 01:13:10]} {[%emt 00:00:09]} e6 {[%clk 00:49:57]} {[%emt
00:01:22]} 15. Bg2 {[%clk 01:12:08]} {[%emt 00:01:32]} a6 {[%clk 00:47:31]}
{[%emt 00:02:56]} 16. Rab1 {[%clk 01:10:27]} {[%emt 00:02:11]} Rb8 {[%clk
00:45:43]} {[%emt 00:02:18]} 17. Rfd1 {[%clk 01:06:57]} {[%emt 00:03:59]} b5
{[%clk 00:44:18]} {[%emt 00:01:55]} 18. cxb5 {[%clk 01:06:28]} {[%emt
00:01:00]} axb5 {[%clk 00:44:03]} {[%emt 00:00:45]} 19. e3 {[%clk 01:06:34]}
{[%emt 00:00:24]} d5 {[%clk 00:42:25]} {[%emt 00:02:08]} 20. Ne2 {[%clk
01:05:33]} {[%emt 00:01:31]} Ba6 {[%clk 00:38:11]} {[%emt 00:04:44]} 21. Bxg7
{[%clk 01:02:51]} {[%emt 00:03:12]} Kxg7 {[%clk 00:38:27]} {[%emt 00:00:14]} 22.
Nd4 {[%clk 00:59:10]} {[%emt 00:04:11]} Kf6 {[%clk 00:37:12]} {[%emt 00:01:46]}
23. Bf1 {[%clk 00:59:05]} {[%emt 00:00:35]} Rb6 {[%clk 00:31:19]} {[%emt
00:06:23]} 24. Rdc1 {[%clk 00:57:18]} {[%emt 00:02:17]} Ne5 {[%clk 00:28:04]}
{[%emt 00:03:44]} 25. Rc7 {[%clk 00:55:28]} {[%emt 00:02:20]} h5 {[%clk
00:27:34]} {[%emt 00:01:02]} 26. Rbc1 {[%clk 00:55:40]} {[%emt 00:00:18]} b4
{[%clk 00:27:54]} {[%emt 00:00:09]} 27. Bxa6 {[%clk 00:54:27]} {[%emt
00:01:44]} Rxa6 {[%clk 00:28:07]} {[%emt 00:00:17]} 28. Rb7 {[%clk 00:53:47]}
{[%emt 00:01:09]} Rxa2 {[%clk 00:28:25]} {[%emt 00:00:12]} 29. Rc2 {[%clk
00:53:54]} {[%emt 00:00:23]} Nf3+ {[%clk 00:26:10]} {[%emt 00:02:45]} 30. Kf1
{[%clk 00:53:00]} {[%emt 00:01:24]} Nd2+ {[%clk 00:20:35]} {[%emt 00:06:04]} 31.
Ke2 {[%clk 00:52:04]} {[%emt 00:01:26]} Nxb3 {[%clk 00:20:14]} {[%emt
00:00:51]} 32. Kd3 {[%clk 00:49:51]} {[%emt 00:02:43]} Rxc2 {[%clk 00:20:07]}
{[%emt 00:00:38]} 33. Kxc2 {[%clk 00:49:59]} {[%emt 00:00:22]} Nxd4+ {[%clk
00:20:13]} {[%emt 00:00:24]} 34. exd4 {[%clk 00:50:10]} {[%emt 00:00:19]} Rc8+
{[%clk 00:20:35]} {[%emt 00:00:07]} 35. Kb2 {[%clk 00:50:02]} {[%emt 00:00:39]}
Rc4 {[%clk 00:20:51]} {[%emt 00:00:13]} 0-1

[Event "LASS Vårturneringar 2018"]
[Site "Linköping, Sweden"]
[Date "2018.05.12"]
[Round "5.5"]
[White "Olsson, Simon"]
[Black "Wahlund, Max"]
[Result "1-0"]
[TimeControl "90 min + 30 sec/move + 30 min/40 moves"]
[WhiteElo "2110"]
[BlackElo "2097"]

1. d4 {[%clk 01:30:58]} {[%emt 00:00:01]} e6 {[%clk 01:30:57]} {[%emt
00:00:03]} 2. c4 {[%clk 01:31:12]} {[%emt 00:00:16]} Nf6 {[%clk 01:31:25]}
{[%emt 00:00:01]} 3. Nc3 {[%clk 01:31:36]} {[%emt 00:00:07]} Bb4 {[%clk
01:31:53]} {[%emt 00:00:03]} 4. a3 {[%clk 01:31:54]} {[%emt 00:00:13]} Bxc3+
{[%clk 01:32:20]} {[%emt 00:00:02]} 5. bxc3 {[%clk 01:32:15]} {[%emt 00:00:09]}
c5 {[%clk 01:32:47]} {[%emt 00:00:04]} 6. e3 {[%clk 01:32:35]} {[%emt
00:00:09]} O-O {[%clk 01:32:59]} {[%emt 00:00:17]} 7. Bd3 {[%clk 01:32:45]}
{[%emt 00:00:21]} Nc6 {[%clk 01:33:19]} {[%emt 00:00:10]} 8. Ne2 {[%clk
01:33:08]} {[%emt 00:00:07]} b6 {[%clk 01:33:37]} {[%emt 00:00:12]} 9. e4
{[%clk 01:33:10]} {[%emt 00:00:28]} Ne8 {[%clk 08:14:04]} {[%emt 00:00:03]} 10.
f4 {[%clk 01:31:44]} {[%emt 00:01:56]} Ba6 {[%clk 01:33:06]} {[%emt 00:01:28]}
11. O-O {[%clk 01:28:58]} {[%emt 00:03:15]} Na5 {[%clk 01:31:38]} {[%emt
00:01:58]} 12. f5 {[%clk 01:28:55]} {[%emt 00:00:33]} Bxc4 {[%clk 01:31:40]}
{[%emt 00:00:28]} 13. f6 {[%clk 01:28:14]} {[%emt 00:01:11]} Bxd3 {[%clk
01:27:22]} {[%emt 00:04:49]} 14. fxg7 {[%clk 01:27:14]} {[%emt 00:01:30]} Bxe4
{[%clk 01:23:17]} {[%emt 00:04:34]} 15. gxf8=Q+ {[%clk 01:26:03]} {[%emt
00:01:41]} Kxf8 {[%clk 01:23:26]} {[%emt 00:00:22]} 16. Bh6+ {[%clk 01:20:35]}
{[%emt 00:05:58]} Kg8 {[%clk 01:22:56]} {[%emt 00:01:00]} 17. Ng3 {[%clk
01:17:07]} {[%emt 00:03:58]} Bg6 {[%clk 01:21:39]} {[%emt 00:01:47]} 18. Rf4
{[%clk 01:14:24]} {[%emt 00:03:13]} cxd4 {[%clk 01:17:58]} {[%emt 00:04:11]} 19.
cxd4 {[%clk 01:12:55]} {[%emt 00:01:59]} Nc4 {[%clk 01:14:56]} {[%emt
00:03:32]} 20. h4 {[%clk 01:12:20]} {[%emt 00:01:06]} Ne3 {[%clk 01:15:00]}
{[%emt 00:00:27]} 21. Qf3 {[%clk 01:06:44]} {[%emt 00:06:05]} Nd5 {[%clk
01:13:38]} {[%emt 00:01:53]} 22. Rg4 {[%clk 01:05:00]} {[%emt 00:02:14]} Rc8
{[%clk 01:09:27]} {[%emt 00:04:41]} 23. h5 {[%clk 01:00:46]} {[%emt 00:04:44]}
Rc3 {[%clk 01:09:55]} {[%emt 00:00:01]} 24. Qf2 {[%clk 01:00:52]} {[%emt
00:00:24]} Nef6 {[%clk 01:07:57]} {[%emt 00:02:28]} 25. hxg6 {[%clk 00:59:31]}
{[%emt 00:01:51]} 1-0

[Event "LASS Vårturneringar 2018"]
[Site "Linköping, Sweden"]
[Date "2018.05.12"]
[Round "5.8"]
[White "Larsson, Mille"]
[Black "Sahlström, Alex"]
[Result "0-1"]
[TimeControl "90 min + 30 sec/move + 30 min/40 moves"]
[WhiteElo "1374"]
[BlackElo "1463"]

1. e4 {[%clk 01:30:59]} c5 {[%clk 01:30:55]} {[%emt 00:00:06]} 2. Nf3 {[%clk
01:31:22]} {[%emt 00:00:06]} d6 {[%clk 01:31:17]} {[%emt 00:00:07]} 3. d4
{[%clk 01:31:13]} {[%emt 00:00:40]} cxd4 {[%clk 01:31:41]} {[%emt 00:00:06]} 4.
Nxd4 {[%clk 01:31:36]} {[%emt 00:00:07]} Nf6 {[%clk 01:32:06]} {[%emt
00:00:05]} 5. Nc3 {[%clk 01:31:56]} {[%emt 00:00:11]} g6 {[%clk 01:32:30]}
{[%emt 00:00:05]} 6. Be3 {[%clk 01:32:10]} {[%emt 00:00:16]} Bg7 {[%clk
01:32:54]} {[%emt 00:00:06]} 7. f3 {[%clk 01:31:51]} {[%emt 00:00:50]} O-O
{[%clk 01:33:16]} {[%emt 00:00:07]} 8. Bc4 {[%clk 01:32:13]} {[%emt 00:00:07]}
Nc6 {[%clk 01:33:07]} {[%emt 00:00:40]} 9. Qd2 {[%clk 01:31:52]} {[%emt
00:00:51]} Bd7 {[%clk 01:33:30]} {[%emt 00:00:07]} 10. O-O-O {[%clk 01:30:59]}
{[%emt 00:01:23]} Qa5 {[%clk 01:33:31]} {[%emt 00:00:29]} 11. h4 {[%clk
01:28:46]} {[%emt 00:02:43]} Rfc8 {[%clk 01:32:33]} {[%emt 00:01:28]} 12. Bb3
{[%clk 01:27:25]} {[%emt 00:01:51]} Ne5 {[%clk 01:29:42]} {[%emt 00:03:20]} 13.
Nd5 Qxd2+ {[%clk 01:29:42]} 14. Rxd2 Nxd5 {[%clk 01:29:42]} 15. Bxd5 Nc4 {[%clk
01:29:42]} 16. Bxc4 Rxc4 {[%clk 01:29:42]} 17. g4 b5 {[%clk 01:29:42]} 18. b3
Rc3 {[%clk 01:29:42]} 19. Rd3 Rac8 {[%clk 01:29:42]} 20. Kb1 Bxd4 {[%clk
01:29:42]} 21. Bxd4 Rxc2 {[%clk 01:29:42]} 22. g5 Re2 {[%clk 01:29:42]} 23.
Rdd1 Rcc2 {[%clk 01:29:42]} 24. Bxa7 Rb2+ {[%clk 01:29:42]} 0-1

[ePGN "0.1;DGT LiveChess/2.1"]

[Event "LASS Vårturneringar 2018"]
[Site "Linköping, Sweden"]
[Date "2018.05.12"]
[Round "6.5"]
[White "Garner, Mårten"]
[Black "Alos, Raul Toledano"]
[Result "1/2-1/2"]
[TimeControl "90 min + 30 sec/move + 30 min/40 moves"]
[WhiteElo "1872"]
[BlackElo "1772"]

1. d4 {[%clk 01:30:55]} {[%emt 00:00:04]} Nf6 {[%clk 01:30:42]} {[%emt
00:00:20]} 2. c4 {[%clk 01:31:19]} {[%emt 00:00:06]} e5 {[%clk 01:30:49]}
{[%emt 00:00:22]} 3. dxe5 {[%clk 01:31:37]} {[%emt 00:00:11]} Ng4 {[%clk
01:31:11]} {[%emt 00:00:08]} 4. Bf4 {[%clk 01:31:37]} {[%emt 00:00:28]} Nc6
{[%clk 01:31:34]} {[%emt 00:00:11]} 5. Nf3 {[%clk 01:31:57]} {[%emt 00:00:07]}
Bc5 {[%clk 01:31:46]} {[%emt 00:00:19]} 6. e3 {[%clk 01:31:57]} {[%emt
00:00:30]} Qe7 {[%clk 01:32:08]} {[%emt 00:00:09]} 7. Nc3 {[%clk 01:31:04]}
{[%emt 00:01:22]} Ngxe5 {[%clk 01:32:20]} {[%emt 00:00:18]} 8. Nxe5 {[%clk
01:28:01]} {[%emt 00:03:32]} Nxe5 {[%clk 01:32:46]} {[%emt 00:00:04]} 9. a3
{[%clk 01:26:10]} {[%emt 00:02:20]} a5 {[%clk 01:32:27]} {[%emt 00:00:50]} 10.
Be2 {[%clk 01:19:53]} {[%emt 00:06:47]} O-O {[%clk 01:32:31]} {[%emt 00:00:27]}
11. O-O {[%clk 01:20:11]} {[%emt 00:00:11]} Re8 {[%clk 01:31:42]} {[%emt
00:01:20]} 12. Qc2 {[%clk 01:19:28]} {[%emt 00:01:11]} Ra6 {[%clk 01:28:17]}
{[%emt 00:03:57]} 13. Nd5 {[%clk 01:19:06]} {[%emt 00:00:51]} Qd8 {[%clk
01:28:42]} {[%emt 00:00:06]} 14. b4 {[%clk 01:18:02]} {[%emt 00:01:33]} axb4
{[%clk 01:29:04]} {[%emt 00:00:08]} 15. axb4 {[%clk 01:18:26]} {[%emt
00:00:06]} Rxa1 {[%clk 01:27:13]} {[%emt 00:02:21]} 16. Rxa1 {[%clk 01:18:48]}
{[%emt 00:00:07]} Bf8 {[%clk 01:27:37]} {[%emt 00:00:07]} 17. Qb2 {[%clk
01:16:53]} {[%emt 00:02:23]} d6 {[%clk 01:26:27]} {[%emt 00:01:43]} 18. Ra8
{[%clk 01:14:33]} {[%emt 00:02:49]} c6 {[%clk 01:23:19]} {[%emt 00:03:39]} 19.
Nc3 {[%clk 01:12:37]} {[%emt 00:02:25]} Ng6 {[%clk 01:21:39]} {[%emt 00:02:11]}
20. Bg3 {[%clk 01:12:22]} {[%emt 00:00:43]} Qf6 {[%clk 01:14:23]} {[%emt
00:07:48]} 21. Qb3 {[%clk 01:05:48]} {[%emt 00:07:03]} b5 {[%clk 01:09:15]}
{[%emt 00:05:38]} 22. h3 {[%clk 01:01:05]} {[%emt 00:05:13]} bxc4 {[%clk
01:04:23]} {[%emt 00:05:23]} 23. Bxc4 {[%clk 01:00:48]} {[%emt 00:00:45]} h5
{[%clk 01:02:43]} {[%emt 00:02:11]} 24. b5 {[%clk 00:56:12]} {[%emt 00:05:05]}
h4 {[%clk 00:57:33]} {[%emt 00:05:38]} 1/2-1/2